fUSD/lending_fUSD_20240327
["ID","MTS","AMOUNT","RATE_DAILY","PERIOD"]
[320758903,1711547450303,-500.0,0.0005452,120]
[320758904,1711547450312,-500.0,0.0005452,120]
[320758905,1711547450322,-842.86,0.0005452,120]
[320758906,1711547450332,-500.0,0.0005452,120]
[320758907,1711547450341,-500.0,0.0005452,120]
[320758908,1711547450351,-500.0,0.0005452,120]
[320758909,1711547450361,-500.0,0.0005452,120]
[320758910,1711547450371,-595.05,0.0005452,120]
[320758911,1711547450381,-500.0,0.0005452,120]
[320758912,1711547450391,-1360.68,0.0005452,120]
[320758913,1711547450401,-592.5007248,0.0005452,120]
[320758914,1711547450412,-500.0,0.0005452,120]
[320758915,1711547450422,-500.0,0.0005452,120]
[320758916,1711547450433,-362.04,0.0005452,120]
[320758917,1711547450443,-500.0,0.0005452,120]
[320758918,1711547450453,-609.66,0.0005452,120]
[320758919,1711547450463,-500.0,0.0005452,120]
[320758920,1711547450473,-500.0,0.0005452,120]
[320758921,1711547450483,-500.0,0.0005452,120]
[320758922,1711547450493,-1527.04,0.0005452,120]
[320758923,1711547450503,-890.52,0.0005452,120]
[320758924,1711547450513,-500.0,0.0005452,120]
[320758925,1711547450522,-500.0,0.0005452,120]
[320758926,1711547450536,-1216.37,0.0005452,120]
[320758927,1711547450547,-500.0,0.0005452,120]
[320758928,1711547450557,-500.0,0.0005452,120]
[320758929,1711547450567,-1540.04,0.0005452,120]
[320758930,1711547450578,-571.26,0.0005452,120]
[320758931,1711547450588,-500.0,0.0005452,120]
[320758932,1711547450599,-500.0,0.0005452,120]
[320758933,1711547450610,-689.51,0.0005452,120]
[320758934,1711547450620,-500.0,0.0005452,120]
[320758935,1711547450631,-657.13,0.0005452,120]
[320758936,1711547450641,-155.14,0.0005452,120]
[320758937,1711547450652,-500.0,0.0005452,120]
[320758938,1711547450662,-500.0,0.0005452,120]
[320758939,1711547450671,-500.0,0.0005452,120]
[320758940,1711547450680,-911.73,0.0005452,120]
[320758941,1711547450690,-500.0,0.0005452,120]
[320758942,1711547450699,-500.0,0.0005452,120]
[320758943,1711547450709,-6611.27,0.0005452,120]
[320758944,1711547450721,-16678.45,0.0005452,120]
[320758945,1711547450733,-166.0,0.0005452,120]
[320758946,1711547450743,-1780.18,0.0005452,120]
[320758947,1711547450753,-1209.86,0.0005452,120]
[320758948,1711547450768,-501.79,0.0005452,120]
[320758949,1711547450855,-575.32,0.0005452,120]
[320758950,1711547450866,-500.0,0.0005452,120]
[320758951,1711547450879,-500.0,0.0005452,120]
[320758952,1711547450890,-500.0,0.0005452,120]
[320758953,1711547450900,-2942.24,0.0005452,120]
[320758954,1711547450910,-2567.83,0.0005452,120]
[320758955,1711547450920,-6016.39,0.0005452,120]
[320758956,1711547450930,-1702.77,0.0005452,120]
[320758957,1711547450941,-500.0,0.0005452,120]
[320758958,1711547450951,-831.8,0.0005452,120]
[320758959,1711547450960,-1213.84,0.0005452,120]
[320758960,1711547450970,-3855.13,0.0005452,120]
[320758961,1711547450980,-4201.42,0.0005452,120]
[320758962,1711547450990,-500.0,0.0005452,120]
[320758963,1711547451000,-932.7,0.0005452,120]
[320758964,1711547451010,-500.0,0.0005452,120]
[320758965,1711547451019,-500.0,0.0005452,120]
[320758966,1711547451028,-500.0,0.0005452,120]
[320758967,1711547451042,-3550.57,0.0005452,120]
[320758968,1711547451052,-2559.05,0.0005452,120]
[320758969,1711547451062,-5499.25,0.0005452,120]
[320758970,1711547451073,-48395.29,0.0005452,120]
[320758971,1711547451084,-1390.72,0.0005452,120]
[320758972,1711547451094,-5162.23,0.0005452,120]
[320758973,1711547451104,-2082.01,0.0005452,120]
[320758974,1711547451113,-500.0,0.0005452,120]
[320758975,1711547451124,-500.0,0.0005452,120]
[320758976,1711547451134,-2876.92,0.0005452,120]
[320758977,1711547451145,-10736.94,0.0005452,120]
[320758978,1711547451155,-500.0,0.0005452,120]
[320758979,1711547451165,-1948.7,0.0005452,120]
[320758980,1711547451174,-864.04,0.0005452,120]
[320758981,1711547451183,-677.31,0.0005452,120]
[320758982,1711547451193,-701.41,0.0005452,120]
[320758983,1711547451203,-500.0,0.0005452,120]
[320758984,1711547451212,-3678.95,0.0005452,120]
[320758985,1711547451221,-2668.11,0.0005452,120]
[320758986,1711547451231,-3052.84,0.0005452,120]
[320758987,1711547451240,-544.82,0.0005452,120]
[320758988,1711547451250,-1533.85,0.0005452,120]
[320758989,1711547451260,-500.0,0.0005452,120]
[320758990,1711547451270,-3700.04,0.0005452,120]
[320758991,1711547451284,-500.0,0.0005452,120]
[320758992,1711547451294,-573.51,0.0005452,120]
[320758993,1711547451304,-1552.43,0.0005452,120]
[320758994,1711547451314,-1930.46,0.0005452,120]
[320758995,1711547451323,-500.0,0.0005452,120]
[320758996,1711547451336,-1923.42,0.0005452,120]
[320758997,1711547451345,-11882.79,0.0005452,120]
[320758998,1711547451355,-189.0,0.0005452,120]
[320758999,1711547451364,-500.0,0.0005452,120]
[320759000,1711547451373,-505.28,0.0005452,120]
[320759001,1711547451383,-8492.3,0.0005452,120]
[320759002,1711547451392,-1106.79,0.0005452,120]
[320759003,1711547451401,-1359.53,0.0005452,120]
[320759004,1711547451410,-1349.5,0.0005452,120]
[320759005,1711547451419,-4906.41,0.0005452,120]
[320759006,1711547451430,-500.0,0.0005452,120]
[320759007,1711547451440,-500.0,0.0005452,7]
[320759008,1711547451450,-1895.16,0.0005452,120]
[320759009,1711547451460,-1465.93,0.0005452,120]
[320759010,1711547451470,-1275.2,0.0005452,120]
[320759011,1711547451480,-2644.87,0.0005452,120]
[320759012,1711547451490,-3909.97,0.0005452,120]
[320759013,1711547451500,-2840.81,0.0005452,120]
[320759014,1711547451510,-500.0,0.0005452,120]
[320759015,1711547451520,-3837.75,0.0005452,120]
[320759016,1711547451535,-3554.71,0.0005452,120]
[320759017,1711547451544,-1676.29,0.0005452,120]
[320759018,1711547451554,-2251.01,0.0005452,120]
[320759019,1711547451566,-2333.55,0.0005452,120]
[320759020,1711547451576,-500.0,0.0005452,120]
[320759021,1711547451587,-500.0,0.0005452,120]
[320759022,1711547451598,-500.0,0.0005452,120]
[320759023,1711547451608,-3186.51,0.0005452,120]
[320759024,1711547451619,-500.0,0.0005452,120]
[320759025,1711547451630,-961.46,0.0005452,120]
[320759026,1711547451640,-7944.87,0.0005452,120]
[320759027,1711547451650,-500.0,0.0005452,120]
[320759028,1711547451661,-2629.59,0.0005452,120]
[320759029,1711547451672,-5765.53,0.0005452,120]
[320759030,1711547451683,-1767.42,0.0005452,120]
[320759031,1711547451693,-2523.36,0.0005452,120]
[320759032,1711547451704,-2487.18,0.0005452,120]
[320759033,1711547451716,-564.84,0.0005452,120]
[320759034,1711547451726,-500.0,0.0005452,120]
[320759035,1711547451738,-500.0,0.0005452,120]
[320759036,1711547451748,-500.0,0.0005452,120]
[320759037,1711547451759,-4544.11,0.0005452,120]
[320759038,1711547451772,-604.04,0.0005452,120]
[320759039,1711547451785,-34491.58,0.0005452,120]
[320759040,1711547451794,-3504.21,0.0005452,120]
[320759041,1711547451803,-1557.74,0.0005452,120]
[320759042,1711547451813,-500.0,0.0005452,85]
[320759043,1711547451822,-4303.75,0.0005452,120]
[320759044,1711547451831,-500.0,0.0005452,120]
[320759045,1711547451841,-500.0,0.0005452,120]
[320759046,1711547451852,-500.0,0.0005452,120]
[320759047,1711547451862,-2752.51,0.0005452,120]
[320759048,1711547451873,-500.0,0.0005452,120]
[320759049,1711547451884,-500.0,0.0005452,120]
[320759050,1711547451894,-3844.74,0.0005452,120]
[320759051,1711547451904,-942.97,0.0005452,120]
[320759052,1711547451915,-8460.64,0.0005452,120]
[320759053,1711547451925,-500.0,0.0005452,120]
[320759054,1711547451936,-500.0,0.0005452,120]
[320759055,1711547451947,-500.0,0.0005452,120]
[320759056,1711547451957,-4052.72,0.0005452,120]
[320759057,1711547451968,-10741.07,0.0005452,120]
[320759058,1711547451978,-500.0,0.0005452,120]
[320759059,1711547451989,-1150.04,0.0005452,120]
[320759060,1711547451999,-1709.28,0.0005452,120]
[320759061,1711547452009,-2453.46,0.0005452,120]
[320759062,1711547452020,-3241.06,0.0005452,120]
[320759063,1711547452033,-500.0,0.0005452,120]
[320759064,1711547452043,-733.75,0.0005452,120]
[320759065,1711547452053,-1867.57,0.0005452,120]
[320759066,1711547452064,-500.0,0.0005452,120]
[320759067,1711547452074,-532.95,0.0005452,120]
[320759068,1711547452083,-2269.32,0.0005452,120]
[320759069,1711547452093,-4619.98,0.0005452,120]
[320759070,1711547452104,-500.0,0.0005452,120]
[320759071,1711547452115,-1537.86,0.0005452,120]
[320759072,1711547452127,-500.0,0.0005452,120]
[320759073,1711547452139,-1148.48,0.0005452,120]
[320759074,1711547452150,-511.93,0.0005452,120]
[320759075,1711547452162,-500.0,0.0005452,120]
[320759076,1711547452173,-500.0,0.0005452,120]
[320759077,1711547452183,-5913.79,0.0005452,120]
[320759078,1711547452194,-4569.3,0.0005452,120]
[320759079,1711547452204,-2664.05,0.0005452,120]
[320759080,1711547452214,-3562.02,0.0005452,21]
[320759081,1711547452224,-2374.6,0.0005452,120]
[320759082,1711547452234,-500.0,0.0005452,120]
[320759083,1711547452244,-762.99,0.0005452,120]
[320759084,1711547452254,-1451.73,0.0005452,120]
[320759085,1711547452264,-1662.28,0.0005452,120]
[320759086,1711547452274,-1019.05,0.0005452,120]
[320759087,1711547452287,-8747.77,0.0005452,120]
[320759088,1711547452297,-500.0,0.0005452,120]
[320759089,1711547452308,-1810.35,0.0005452,120]
[320759090,1711547452318,-500.0,0.0005452,120]
[320759091,1711547452328,-1262.14,0.0005452,120]
[320759092,1711547452338,-1672.45,0.0005452,120]
[320759093,1711547452348,-500.0,0.0005452,2]
[320759094,1711547452357,-1199.25,0.0005452,120]
[320759095,1711547452367,-2294.52,0.0005452,120]
[320759096,1711547452377,-500.0,0.0005452,120]
[320759097,1711547452386,-1663.21,0.0005452,120]
[320759098,1711547452395,-1717.96,0.0005452,120]
[320759099,1711547452405,-2456.3,0.0005452,120]
[320759100,1711547452415,-500.0,0.0005452,120]
[320759101,1711547452424,-1007.6,0.0005452,120]
[320759102,1711547452435,-500.0,0.0005452,120]
[320759103,1711547452446,-500.0,0.0005452,120]
[320759104,1711547452455,-1813.7,0.0005452,120]
[320759105,1711547452465,-603.72,0.0005452,120]
[320759106,1711547452476,-1541.09,0.0005452,120]
[320759107,1711547452485,-500.0,0.0005452,120]
[320759108,1711547452495,-670.66,0.0005452,120]
[320759109,1711547452504,-5144.18,0.0005452,120]
[320759110,1711547452514,-537.4,0.0005452,120]
[320759111,1711547452525,-665.9,0.0005452,120]
[320759112,1711547452538,-2085.51,0.0005452,120]
[320759113,1711547452548,-500.0,0.0005452,120]
[320759114,1711547452558,-263.21,0.0005452,120]
[320759115,1711547452568,-500.0,0.0005452,120]
[320759116,1711547452579,-500.0,0.0005452,120]
[320759117,1711547452590,-5860.09,0.0005452,120]
[320759118,1711547452600,-660.84,0.0005452,120]
[320759119,1711547452610,-3887.87,0.0005452,120]
[320759120,1711547452620,-1213.12,0.0005452,120]
[320759121,1711547452630,-500.0,0.0005452,120]
[320759122,1711547452640,-593.43,0.0005452,120]
[320759123,1711547452650,-192.591861,0.00054521,30]
[320759124,1711547452661,-150.0,0.00054673,2]
[320759125,1711547452672,-401.0,0.00054686,120]
[320759126,1711547452683,-150.0,0.00054689,14]
[320759127,1711547452693,-500.0,0.0005469,120]
[320759128,1711547452704,-500.0,0.0005469,120]
[320759129,1711547452713,-500.0,0.0005469,120]
[320759130,1711547452724,-500.0,0.0005469,120]
[320759131,1711547452733,-500.0,0.0005469,120]
[320759132,1711547452743,-199.79287936,0.0005469,120]
[320759133,1711547452752,-500.0,0.0005469,120]
[320759134,1711547452764,-500.0,0.0005469,120]
[320759135,1711547452773,-500.0,0.0005469,120]
[320759136,1711547452784,-500.0,0.0005469,120]
[320759137,1711547452793,-500.0,0.0005469,120]
[320759138,1711547452802,-500.0,0.0005469,120]
[320759139,1711547452811,-500.0,0.0005469,120]
[320759140,1711547452820,-500.0,0.0005469,120]
[320759141,1711547452832,-500.0,0.0005469,120]
[320759142,1711547452844,-500.0,0.0005469,120]
[320759143,1711547452856,-500.0,0.0005469,120]
[320759144,1711547452867,-500.0,0.0005469,120]
[320759145,1711547452878,-500.0,0.0005469,120]
[320759146,1711547452890,-500.0,0.0005469,120]
[320759147,1711547452901,-500.0,0.0005469,120]
[320759148,1711547452911,-500.0,0.0005469,120]
[320759149,1711547452923,-500.0,0.0005469,120]
[320759150,1711547452934,-500.0,0.0005469,120]
[320759151,1711547452944,-500.0,0.0005469,120]
[320759152,1711547452956,-500.0,0.0005469,120]
[320759153,1711547452968,-500.0,0.0005469,120]
[320759154,1711547452980,-500.0,0.0005469,120]
[320759155,1711547452991,-500.0,0.0005469,120]
[320759156,1711547453002,-500.0,0.0005469,120]
[320759157,1711547453013,-500.0,0.0005469,120]
[320759158,1711547453023,-500.0,0.0005469,120]
[320759159,1711547453036,-500.0,0.0005469,120]
[320759160,1711547453047,-500.0,0.0005469,120]
[320759161,1711547453057,-500.0,0.0005469,120]
[320759162,1711547453067,-500.0,0.0005469,120]
[320759163,1711547453077,-159.65960547,0.0005469,120]
[320759164,1711547453087,-500.0,0.0005469,120]
[320759165,1711547453096,-500.0,0.0005469,120]
[320759166,1711547453105,-500.0,0.0005469,120]
[320759167,1711547453115,-500.0,0.0005469,120]
[320759168,1711547453125,-500.0,0.0005469,120]
[320759169,1711547453136,-500.0,0.0005469,120]
[320759170,1711547453146,-500.0,0.0005469,120]
[320759171,1711547453156,-500.0,0.0005469,120]
[320759172,1711547453166,-500.0,0.0005469,120]
[320759173,1711547453175,-500.0,0.0005469,120]
[320759174,1711547453185,-500.0,0.0005469,120]
[320759175,1711547453195,-512.06998801,0.0005469,120]
[320759176,1711547453205,-500.0,0.0005469,120]
[320759177,1711547453216,-500.0,0.0005469,120]
[320759178,1711547453225,-361.00657238,0.0005469,120]
[320759179,1711547453235,-500.0,0.0005469,120]
[320759180,1711547453245,-500.0,0.0005469,120]
[320759181,1711547453255,-500.0,0.0005469,120]
[320759182,1711547453265,-500.0,0.0005469,120]
[320759183,1711547453275,-500.0,0.0005469,120]
[320759184,1711547453287,-500.0,0.0005469,120]
[320759185,1711547453297,-500.0,0.0005469,120]
[320759186,1711547453306,-500.0,0.0005469,120]
[320759187,1711547453316,-500.0,0.0005469,120]
[320759188,1711547453326,-339.88708626,0.0005469,120]
[320759189,1711547453336,-500.0,0.0005469,120]
[320759190,1711547453346,-1118.51,0.0005469,120]
[320759191,1711547453356,-1489.4,0.0005469,120]
[320759192,1711547453366,-500.0,0.0005469,120]
[320759193,1711547453376,-605.08536976,0.0005469,120]
[320759194,1711547453386,-625.55995881,0.0005469,120]
[320759195,1711547453397,-544.42,0.0005469,120]
[320759196,1711547453407,-500.0,0.0005469,60]
[320759197,1711547453418,-589.53,0.0005469,120]
[320759198,1711547453428,-500.0,0.0005469,120]
[320759199,1711547453439,-500.0,0.0005469,120]
[320759200,1711547453450,-500.0,0.0005469,120]
[320759201,1711547453460,-1380.19,0.0005469,120]
[320759202,1711547453470,-500.0,0.0005469,120]
[320759203,1711547453481,-500.0,0.0005469,120]
[320759204,1711547453491,-500.0,0.0005469,120]
[320759205,1711547453501,-500.0,0.0005469,120]
[320759206,1711547453511,-500.0,0.0005469,120]
[320759207,1711547453520,-507.47765436,0.0005469,120]
[320759208,1711547453533,-505.95854901,0.0005469,120]
[320759209,1711547453545,-500.0,0.0005469,120]
[320759210,1711547453555,-500.0,0.0005469,120]
[320759211,1711547453566,-500.0,0.0005469,120]
[320759212,1711547453575,-500.0,0.0005469,120]
[320759213,1711547453586,-500.0,0.0005469,120]
[320759214,1711547453595,-500.0,0.0005469,120]
[320759215,1711547453604,-500.0,0.0005469,120]
[320759216,1711547453614,-500.0,0.0005469,120]
[320759217,1711547453624,-500.0,0.0005469,120]
[320759218,1711547453633,-500.0,0.0005469,120]
[320759219,1711547453643,-500.0,0.0005469,120]
[320759220,1711547453654,-500.0,0.0005469,120]
[320759221,1711547453665,-500.0,0.0005469,120]
[320759222,1711547453676,-656.72,0.0005469,120]
[320759223,1711547453685,-500.0,0.0005469,120]
[320759224,1711547453694,-1193.31,0.0005469,120]
[320759225,1711547453704,-500.0,0.0005469,120]
[320759226,1711547453714,-500.0,0.0005469,120]
[320759227,1711547453726,-500.0,0.0005469,120]
[320759228,1711547453736,-500.0,0.0005469,120]
[320759229,1711547453745,-500.0,0.0005469,120]
[320759230,1711547453759,-500.0,0.0005469,120]
[320759231,1711547453770,-500.0,0.0005469,120]
[320759232,1711547453779,-500.0,0.0005469,120]
[320759233,1711547453792,-500.0,0.0005469,120]
[320759234,1711547453802,-500.0,0.0005469,120]
[320759235,1711547453813,-505.97288145,0.0005469,120]
[320759236,1711547453823,-500.0,0.0005469,120]
[320759237,1711547453832,-666.95,0.0005469,120]
[320759238,1711547453845,-500.0,0.0005469,120]
[320759239,1711547453856,-500.0,0.0005469,120]
[320759240,1711547453865,-500.0,0.0005469,120]
[320759241,1711547453875,-500.0,0.0005469,120]
[320759242,1711547453886,-500.0,0.0005469,120]
[320759243,1711547453897,-589.24,0.0005469,120]
[320759244,1711547453907,-500.0,0.0005469,120]
[320759245,1711547453917,-500.0,0.0005469,120]
[320759246,1711547453927,-500.0,0.0005469,120]
[320759247,1711547453939,-500.0,0.0005469,120]
[320759248,1711547453949,-500.0,0.0005469,120]
[320759249,1711547453959,-500.0,0.0005469,120]
[320759250,1711547453970,-500.0,0.0005469,120]
[320759251,1711547453979,-500.0,0.0005469,120]
[320759252,1711547453990,-500.0,0.0005469,120]
[320759253,1711547454000,-500.0,0.0005469,120]
[320759254,1711547454009,-500.0,0.0005469,120]
[320759255,1711547454018,-500.0,0.0005469,120]
[320759256,1711547454027,-500.0,0.0005469,120]
[320759257,1711547454040,-504.16290595,0.0005469,120]
[320759258,1711547454050,-500.0,0.0005469,120]
[320759259,1711547454060,-500.0,0.0005469,120]
[320759260,1711547454069,-1201.75,0.0005469,120]
[320759261,1711547454079,-500.0,0.0005469,120]
[320759262,1711547454089,-500.0,0.0005469,120]
[320759263,1711547454098,-504.08099031,0.0005469,120]
[320759264,1711547454109,-500.0,0.0005469,120]
[320759265,1711547454118,-500.0,0.0005469,120]
[320759266,1711547454128,-500.0,0.0005469,120]
[320759267,1711547454137,-500.0,0.0005469,120]
[320759268,1711547454148,-500.0,0.0005469,120]
[320759269,1711547454158,-500.0,0.0005469,120]
[320759270,1711547454167,-904.39,0.0005469,120]
[320759271,1711547454177,-598.55,0.0005469,120]
[320759272,1711547454187,-500.0,0.0005469,120]
[320759273,1711547454197,-500.0,0.0005469,120]
[320759274,1711547454207,-566.87566773,0.0005469,120]
[320759275,1711547454217,-500.91,0.0005469,120]
[320759276,1711547454226,-500.0,0.0005469,120]
[320759277,1711547454235,-500.0,0.0005469,120]
[320759278,1711547454245,-500.0,0.0005469,120]
[320759279,1711547454255,-500.0,0.0005469,120]
[320759280,1711547454266,-500.0,0.0005469,120]
[320759281,1711547454275,-500.0,0.0005469,120]
[320759282,1711547454289,-500.0,0.0005469,7]
[320759283,1711547454298,-575.73,0.0005469,120]
[320759284,1711547454308,-527.79753741,0.0005469,120]
[320759285,1711547454319,-500.0,0.0005469,120]
[320759286,1711547454329,-872.43,0.0005469,120]
[320759287,1711547454339,-500.0,0.0005469,120]
[320759288,1711547454349,-500.0,0.0005469,120]
[320759289,1711547454359,-500.0,0.0005469,120]
[320759290,1711547454369,-500.0,0.0005469,120]
[320759291,1711547454379,-500.0,0.0005469,120]
[320759292,1711547454388,-500.0,0.0005469,120]
[320759293,1711547454399,-1209.28,0.0005469,120]
[320759294,1711547454408,-500.0,0.0005469,120]
[320759295,1711547454418,-500.0,0.0005469,120]
[320759296,1711547454428,-500.0,0.0005469,120]
[320759297,1711547454438,-500.0,0.0005469,120]
[320759298,1711547454447,-500.0,0.0005469,120]
[320759299,1711547454457,-500.0,0.0005469,120]
[320759300,1711547454467,-1134.57,0.0005469,120]
[320759301,1711547454477,-500.0,0.0005469,120]
[320759302,1711547454487,-500.0,0.0005469,120]
[320759303,1711547454497,-500.0,0.0005469,120]
[320759304,1711547454507,-500.0,0.0005469,120]
[320759305,1711547454517,-500.0,0.0005469,120]
[320759306,1711547454527,-507.98769908,0.0005469,120]
[320759307,1711547454542,-500.0,0.0005469,120]
[320759308,1711547454553,-500.0,0.0005469,120]
[320759309,1711547454562,-500.0,0.0005469,120]
[320759310,1711547454573,-500.0,0.0005469,120]
[320759311,1711547454582,-500.0,0.0005469,120]
[320759312,1711547454592,-500.0,0.0005469,120]
[320759313,1711547454601,-500.0,0.0005469,120]
[320759314,1711547454612,-500.0,0.0005469,120]
[320759315,1711547454621,-510.23,0.0005469,120]
[320759316,1711547454632,-500.0,0.0005469,120]
[320759317,1711547454642,-500.0,0.0005469,120]
[320759318,1711547454652,-1248.98,0.0005469,120]
[320759319,1711547454663,-500.0,0.0005469,120]
[320759320,1711547454674,-1127.2,0.0005469,120]
[320759321,1711547454684,-500.0,0.0005469,120]
[320759322,1711547454693,-500.0,0.0005469,120]
[320759323,1711547454703,-500.0,0.0005469,120]
[320759324,1711547454713,-500.0,0.0005469,120]
[320759325,1711547454726,-500.0,0.0005469,120]
[320759326,1711547454737,-500.0,0.0005469,120]
[320759327,1711547454747,-500.0,0.0005469,120]
[320759328,1711547454756,-611.93,0.0005469,120]
[320759329,1711547454770,-500.0,0.0005469,120]
[320759330,1711547454785,-500.0,0.0005469,120]
[320759331,1711547454796,-500.0,0.0005469,120]
[320759332,1711547454806,-500.0,0.0005469,120]
[320759333,1711547454816,-500.0,0.0005469,120]
[320759334,1711547454826,-500.0,0.0005469,120]
[320759335,1711547454837,-590.85,0.0005469,120]
[320759336,1711547454848,-500.0,0.0005469,120]
[320759337,1711547454859,-516.15766345,0.0005469,120]
[320759338,1711547454868,-500.0,0.0005469,120]
[320759339,1711547454878,-508.60012885,0.0005469,120]
[320759340,1711547454892,-500.0,0.0005469,120]
[320759341,1711547454903,-500.0,0.0005469,120]
[320759342,1711547454914,-500.0,0.0005469,120]
[320759343,1711547454927,-307.92,0.0005469,120]
[320759344,1711547454939,-500.0,0.0005469,120]
[320759345,1711547454950,-500.0,0.0005469,120]
[320759346,1711547454961,-500.0,0.0005469,120]
[320759347,1711547454973,-500.0,0.0005469,120]
[320759348,1711547454985,-500.0,0.0005469,120]
[320759349,1711547454996,-844.02,0.0005469,120]
[320759350,1711547455007,-500.0,0.0005469,120]
[320759351,1711547455018,-500.0,0.0005469,120]
[320759352,1711547455029,-581.65505069,0.0005469,120]
[320759353,1711547455046,-500.0,0.0005469,120]
[320759354,1711547455057,-500.0,0.0005469,120]
[320759355,1711547455067,-721.26,0.0005469,120]
[320759356,1711547455081,-500.0,0.0005469,120]
[320759357,1711547455092,-500.0,0.0005469,120]
[320759358,1711547455102,-1010.4,0.0005469,120]
[320759359,1711547455113,-500.0,0.0005469,120]
[320759360,1711547455124,-833.04,0.0005469,120]
[320759361,1711547455134,-500.0,0.0005469,120]
[320759362,1711547455145,-500.0,0.0005469,120]
[320759363,1711547455157,-500.0,0.0005469,120]
[320759364,1711547455167,-500.0,0.0005469,120]
[320759365,1711547455177,-500.0,0.0005469,120]
[320759366,1711547455188,-500.0,0.0005469,120]
[320759367,1711547455199,-1930.49,0.0005469,120]
[320759368,1711547455211,-500.0,0.0005469,120]
[320759369,1711547455222,-500.0,0.0005469,120]
[320759370,1711547455234,-500.0,0.0005469,120]
[320759371,1711547455245,-500.0,0.0005469,120]
[320759372,1711547455256,-500.0,0.0005469,120]
[320759373,1711547455267,-300.0,0.0005469,2]
[320759374,1711547455460,-380.830886,0.0005469,2]
[320759375,1711547455471,-500.0,0.0005469,120]
[320759376,1711547455482,-666.27,0.0005469,120]
[320759377,1711547455492,-500.0,0.0005469,120]
[320759378,1711547455502,-500.0,0.0005469,120]
[320759379,1711547455511,-500.0,0.0005469,120]
[320759380,1711547455521,-245.56776325,0.0005469,120]
[320759381,1711547455530,-2197.86,0.0005469,120]
[320759382,1711547455544,-500.0,0.0005469,120]
[320759383,1711547455553,-500.0,0.0005469,120]
[320759384,1711547455562,-716.25,0.0005469,120]
[320759385,1711547455572,-500.0,0.0005469,120]
[320759386,1711547455582,-2972.28,0.0005469,120]
[320759387,1711547455591,-616.38,0.0005469,120]
[320759388,1711547455601,-500.0,0.0005469,120]
[320759389,1711547455611,-500.0,0.0005469,120]
[320759390,1711547455621,-1479.78,0.0005469,120]
[320759391,1711547455631,-500.0,0.0005469,120]
[320759392,1711547455640,-500.0,0.0005469,120]
[320759393,1711547455650,-500.0,0.0005469,120]
[320759394,1711547455660,-500.0,0.0005469,120]
[320759395,1711547455670,-500.0,0.0005469,120]
[320759396,1711547455680,-4047.95,0.0005469,120]
[320759397,1711547455690,-500.0,0.0005469,120]
[320759398,1711547455700,-500.0,0.0005469,120]
[320759399,1711547455710,-278.65152029,0.0005469,120]
[320759400,1711547455722,-500.0,0.0005469,120]
[320759401,1711547455732,-500.0,0.0005469,120]
[320759402,1711547455742,-1116.9,0.0005469,120]